fUSD/lending_fUSD_20241106
["ID","MTS","AMOUNT","RATE_DAILY","PERIOD"]
[341428448,1730878257696,-500.0,0.00037996,14]
[341428449,1730878257705,-500.0,0.00037996,14]
[341428450,1730878257715,-500.0,0.00037996,14]
[341428451,1730878257724,-605.08,0.00037996,14]
[341428452,1730878257733,-500.0,0.00037996,14]
[341428453,1730878257743,-500.0,0.00037996,14]
[341428454,1730878257752,-514.12768105,0.00037996,14]
[341428455,1730878257761,-503.41998033,0.00037996,14]
[341428456,1730878257771,-500.0,0.00037996,14]
[341428457,1730878257780,-554.05230731,0.00037996,14]
[341428458,1730878257789,-500.0,0.00037996,14]
[341428459,1730878257798,-500.0,0.00037996,14]
[341428460,1730878257807,-500.0,0.00037996,14]
[341428461,1730878257816,-500.0,0.00037996,14]
[341428462,1730878257825,-500.0,0.00037996,14]
[341428463,1730878257834,-500.0,0.00037996,14]
[341428464,1730878257843,-531.56841738,0.00037996,14]
[341428465,1730878257852,-500.0,0.00037996,14]
[341428466,1730878257861,-500.0,0.00037996,14]
[341428467,1730878257871,-500.0,0.00037996,14]
[341428468,1730878257880,-295.38003395,0.00037996,14]
[341428469,1730878257889,-500.0,0.00037996,14]
[341428470,1730878257899,-500.0,0.00037996,14]
[341428471,1730878257908,-500.0,0.00037996,14]
[341428472,1730878257917,-500.0,0.00037996,14]
[341428473,1730878257927,-534.24709763,0.00037996,14]
[341428474,1730878257938,-500.0,0.00037996,14]
[341428475,1730878257947,-500.0,0.00037996,14]
[341428476,1730878257957,-531.00247089,0.00037996,14]
[341428477,1730878257966,-525.27258849,0.00037996,14]
[341428478,1730878257975,-466.58707172,0.00037996,14]
[341428479,1730878257984,-500.0,0.00037996,14]
[341428480,1730878257994,-500.0,0.00037996,14]
[341428481,1730878258003,-311.50902714,0.00037996,14]
[341428482,1730878258013,-500.0,0.00037996,14]
[341428483,1730878258023,-500.0,0.00037996,14]
[341428484,1730878258033,-500.0,0.00037996,14]
[341428485,1730878258043,-500.0,0.00037996,14]
[341428486,1730878258053,-500.0,0.00037996,14]
[341428487,1730878258063,-500.0,0.00037996,14]
[341428488,1730878258072,-500.0,0.00037996,14]
[341428489,1730878258082,-500.0,0.00037996,14]
[341428490,1730878258091,-585.15160526,0.00037996,14]
[341428491,1730878258100,-500.0,0.00037996,14]
[341428492,1730878258110,-384.07104238,0.00037996,14]
[341428493,1730878258119,-500.0,0.00037996,14]
[341428494,1730878258128,-500.0,0.00037996,14]
[341428495,1730878258138,-500.0,0.00037996,14]
[341428496,1730878258147,-500.0,0.00037996,14]
[341428497,1730878258156,-500.0,0.00037996,14]
[341428498,1730878258165,-314.25044398,0.00037996,14]
[341428499,1730878258175,-500.0,0.00037996,14]
[341428500,1730878258185,-503.07246614,0.00037996,14]
[341428501,1730878258194,-500.0,0.00037996,14]
[341428502,1730878258203,-500.0,0.00037996,14]
[341428503,1730878258213,-500.0,0.00037996,14]
[341428504,1730878258222,-500.0,0.00037996,14]
[341428505,1730878258283,-500.0,0.00037996,14]
[341428506,1730878258292,-500.0,0.00037996,14]
[341428507,1730878258301,-521.96001725,0.00037996,14]
[341428508,1730878258310,-500.0,0.00037996,14]
[341428509,1730878258319,-503.32094129,0.00037996,14]
[341428510,1730878258328,-526.52160499,0.00037996,14]
[341428511,1730878258337,-500.0,0.00037996,14]
[341428512,1730878258347,-500.0,0.00037996,14]
[341428513,1730878258355,-500.0,0.00037996,14]
[341428514,1730878258365,-500.0,0.00037996,14]
[341428515,1730878258374,-500.0,0.00037996,14]
[341428516,1730878258383,-500.0,0.00037996,14]
[341428517,1730878258394,-500.0,0.00037996,14]
[341428518,1730878258408,-500.0,0.00037996,14]
[341428519,1730878258418,-500.0,0.00037996,14]
[341428520,1730878258427,-500.0,0.00037996,14]
[341428521,1730878258436,-535.09455361,0.00037996,14]
[341428522,1730878258446,-500.0,0.00037996,14]
[341428523,1730878258455,-500.0,0.00037996,14]
[341428524,1730878258464,-500.0,0.00037996,14]
[341428525,1730878258475,-500.0,0.00037996,14]
[341428526,1730878258484,-527.26035199,0.00037996,14]
[341428527,1730878258494,-500.0,0.00037996,14]
[341428528,1730878258503,-500.0,0.00037996,14]
[341428529,1730878258512,-500.0,0.00037996,14]
[341428530,1730878258521,-182.56616179,0.00037996,14]
[341428531,1730878258530,-500.0,0.00037996,14]
[341428532,1730878258539,-527.40396828,0.00037996,14]
[341428533,1730878258548,-542.14500612,0.00037996,14]
[341428534,1730878258557,-621.11734973,0.00037996,14]
[341428535,1730878258566,-500.0,0.00037996,14]
[341428536,1730878258575,-500.0,0.00037996,14]
[341428537,1730878258584,-500.0,0.00037996,14]
[341428538,1730878258593,-500.0,0.00037996,14]
[341428539,1730878258602,-439.34130847,0.00037996,14]
[341428540,1730878258611,-500.0,0.00037996,14]
[341428541,1730878258620,-500.0,0.00037996,14]
[341428542,1730878258631,-500.0,0.00037996,14]
[341428543,1730878258642,-550.72730263,0.00037996,14]
[341428544,1730878258653,-502.71150721,0.00037996,14]
[341428545,1730878258664,-500.0,0.00037996,14]
[341428546,1730878258673,-500.0,0.00037996,14]
[341428547,1730878258682,-507.16278506,0.00037996,14]
[341428548,1730878258693,-500.0,0.00037996,14]
[341428549,1730878258702,-500.0,0.00037996,14]
[341428550,1730878258711,-500.0,0.00037996,14]
[341428551,1730878258720,-502.77759779,0.00037996,7]
[341428552,1730878258729,-500.0,0.00037996,14]
[341428553,1730878258739,-500.0,0.00037996,14]
[341428554,1730878258748,-500.0,0.00037996,14]
[341428555,1730878258759,-500.0,0.00037996,14]
[341428556,1730878258769,-500.0,0.00037996,14]
[341428557,1730878258778,-251.08977863,0.00037996,14]
[341428558,1730878258789,-500.0,0.00037996,14]
[341428559,1730878258799,-500.0,0.00037996,14]
[341428560,1730878258809,-500.0,0.00037996,14]
[341428561,1730878258818,-500.0,0.00037996,14]
[341428562,1730878258827,-591.64,0.00037996,14]
[341428563,1730878258838,-500.0,0.00037996,14]
[341428564,1730878258848,-500.0,0.00037996,14]
[341428565,1730878258858,-500.0,0.00037996,14]
[341428566,1730878258869,-500.0,0.00037996,14]
[341428567,1730878258879,-500.0,0.00037996,14]
[341428568,1730878258890,-500.0,0.00037996,14]
[341428569,1730878258899,-500.0,0.00037996,14]
[341428570,1730878258909,-250.0,0.00037996,14]
[341428571,1730878258919,-506.00079477,0.00037996,14]
[341428572,1730878258928,-500.0,0.00037996,14]
[341428573,1730878258939,-512.29636774,0.00037996,14]
[341428574,1730878258949,-500.0,0.00037996,14]
[341428575,1730878258959,-500.0,0.00037996,14]
[341428576,1730878258969,-500.0,0.00037996,14]
[341428577,1730878258978,-500.0,0.00037996,14]
[341428578,1730878258988,-500.0,0.00037996,14]
[341428579,1730878258997,-533.09633604,0.00037996,14]
[341428580,1730878259007,-500.0,0.00037996,14]
[341428581,1730878259016,-500.0,0.00037996,14]
[341428582,1730878259025,-408.94139698,0.00037996,14]
[341428583,1730878259034,-500.0,0.00037996,14]
[341428584,1730878259043,-500.0,0.00037996,14]
[341428585,1730878259052,-500.0,0.00037996,14]
[341428586,1730878259061,-500.0,0.00037996,14]
[341428587,1730878259070,-500.0,0.00037996,14]
[341428588,1730878259080,-165.37551233,0.00037996,14]
[341428589,1730878259089,-500.0,0.00037996,14]
[341428590,1730878259099,-500.0,0.00037996,14]
[341428591,1730878259108,-500.0,0.00037996,14]
[341428592,1730878259118,-500.0,0.00037996,14]
[341428593,1730878259127,-511.4686688,0.00037996,14]
[341428594,1730878259137,-468.10726558,0.00037996,14]
[341428595,1730878259146,-572.58997372,0.00037996,14]
[341428596,1730878259155,-553.46083347,0.00037996,14]
[341428597,1730878259165,-500.0,0.00037996,14]
[341428598,1730878259174,-543.89372167,0.00037996,14]
[341428599,1730878259185,-503.7469009,0.00037996,2]
[341428600,1730878259195,-548.36477284,0.00037996,14]
[341428601,1730878259204,-421.34766025,0.00037996,14]
[341428602,1730878259214,-200.0,0.00037996,7]
[341428603,1730878259223,-500.0,0.00037996,14]
[341428604,1730878259232,-500.0,0.00037996,14]
[341428605,1730878259242,-507.0969351,0.00037996,14]
[341428606,1730878259251,-539.82,0.00037996,7]
[341428607,1730878259260,-500.0,0.00037996,14]
[341428608,1730878259269,-526.56983884,0.00037996,14]
[341428609,1730878259278,-500.45423785,0.00037996,14]
[341428610,1730878259287,-521.93157916,0.00037996,14]
[341428611,1730878259297,-500.0,0.00037996,14]
[341428612,1730878259307,-508.20463597,0.00037996,14]
[341428613,1730878259316,-547.60021487,0.00037996,14]
[341428614,1730878259325,-500.0,0.00037996,14]
[341428615,1730878259335,-440.75959446,0.00037996,14]
[341428616,1730878259345,-500.0,0.00037996,14]
[341428617,1730878259355,-208.8,0.00037996,14]
[341428618,1730878259365,-602.31953006,0.00037996,14]
[341428619,1730878259374,-332.20468289,0.00037996,14]
[341428620,1730878259383,-519.02766293,0.00037996,14]
[341428621,1730878259393,-500.0,0.00037996,14]
[341428622,1730878259405,-500.0,0.00037996,14]
[341428623,1730878259415,-508.46610778,0.00037996,14]
[341428624,1730878259424,-500.0,0.00037996,14]
[341428625,1730878259434,-500.0,0.00037996,14]
[341428626,1730878259443,-500.0,0.00037996,14]
[341428627,1730878259452,-344.70587888,0.00037996,14]
[341428628,1730878259462,-312.45276737,0.00037996,14]
[341428629,1730878259471,-500.0,0.00037996,14]
[341428630,1730878259481,-162.72789798,0.00037996,14]
[341428631,1730878259490,-520.33554559,0.00037996,14]
[341428632,1730878259499,-500.0,0.00037996,14]
[341428633,1730878259508,-309.2462064,0.00037996,14]
[341428634,1730878259516,-500.0,0.00037996,14]
[341428635,1730878259526,-500.0,0.00037996,14]
[341428636,1730878259535,-500.0,0.00037996,14]
[341428637,1730878259543,-205.24374428,0.00037996,14]
[341428638,1730878259552,-519.17315692,0.00037996,14]
[341428639,1730878259562,-171.7,0.00037996,14]
[341428640,1730878259572,-330.88,0.00037996,14]
[341428641,1730878259581,-500.0,0.00037996,14]
[341428642,1730878259590,-198.73,0.00037996,14]
[341428643,1730878259599,-500.0,0.00037996,14]
[341428644,1730878259608,-500.0,0.00037996,14]
[341428645,1730878259617,-500.0,0.00037996,2]
[341428646,1730878259626,-365.40133364,0.00037996,14]
[341428647,1730878259635,-538.45912426,0.00037996,14]
[341428648,1730878259644,-500.0,0.00037996,14]
[341428649,1730878259653,-547.12663529,0.00037996,14]
[341428650,1730878259662,-500.0,0.00037996,14]
[341428651,1730878259671,-523.88743528,0.00037996,14]
[341428652,1730878259680,-526.01008846,0.00037996,14]
[341428653,1730878259691,-540.94987881,0.00037996,14]
[341428654,1730878259700,-500.0,0.00037996,14]
[341428655,1730878259710,-475.142618,0.00037996,14]
[341428656,1730878259719,-500.0,0.00037996,14]
[341428657,1730878259728,-500.0,0.00037996,14]
[341428658,1730878259737,-500.0,0.00037996,14]
[341428659,1730878259746,-500.0,0.00037996,14]
[341428660,1730878259755,-500.0,0.00037996,14]
[341428661,1730878259764,-1929.99,0.00037996,14]
[341428662,1730878259773,-541.39967591,0.00037996,14]
[341428663,1730878259782,-500.0,0.00037996,14]
[341428664,1730878259791,-500.0,0.00037996,14]
[341428665,1730878259800,-548.58281393,0.00037996,14]
[341428666,1730878259810,-500.0,0.00037996,14]
[341428667,1730878259819,-533.18687622,0.00037996,14]
[341428668,1730878259827,-500.0,0.00037996,14]
[341428669,1730878259837,-500.0,0.00037996,14]
[341428670,1730878259846,-500.0,0.00037996,14]
[341428671,1730878259855,-500.0,0.00037996,14]
[341428672,1730878259864,-500.0,0.00037996,14]
[341428673,1730878259874,-645.80987525,0.00037996,14]
[341428674,1730878259883,-500.0,0.00037996,14]
[341428675,1730878259892,-500.0,0.00037996,14]
[341428676,1730878259902,-500.0,0.00037996,14]
[341428677,1730878259911,-500.0,0.00037996,14]
[341428678,1730878259920,-500.0,0.00037996,14]
[341428679,1730878259929,-500.0,0.00037996,14]
[341428680,1730878259940,-150.0,0.00037996,14]
[341428681,1730878259950,-500.0,0.00037996,14]
[341428682,1730878259959,-500.0,0.00037996,14]
[341428683,1730878259968,-440.64,0.00037996,14]
[341428684,1730878259978,-500.0,0.00037996,14]
[341428685,1730878259986,-500.0,0.00037996,14]
[341428686,1730878259996,-500.0,0.00037996,14]
[341428687,1730878260006,-500.0,0.00037996,14]
[341428688,1730878260015,-500.0,0.00037996,14]
[341428689,1730878260024,-510.11656578,0.00037996,14]
[341428690,1730878260033,-639.14194474,0.00037996,14]
[341428691,1730878260043,-500.0,0.00037996,14]
[341428692,1730878260052,-500.0,0.00037996,14]
[341428693,1730878260061,-504.50961342,0.00037996,14]
[341428694,1730878260071,-500.0,0.00037996,14]
[341428695,1730878260080,-516.06626449,0.00037996,14]
[341428696,1730878260089,-188.3856484,0.00037996,14]
[341428697,1730878260099,-500.0,0.00037996,14]
[341428698,1730878260108,-500.0,0.00037996,14]
[341428699,1730878260117,-505.59769445,0.00037996,14]
[341428700,1730878260127,-500.0,0.00037996,14]
[341428701,1730878260136,-794.71,0.00037996,14]
[341428702,1730878260146,-500.0,0.00037996,14]
[341428703,1730878260155,-500.0,0.00037996,14]
[341428704,1730878260164,-500.0,0.00037996,14]
[341428705,1730878260173,-500.0,0.00037996,14]
[341428706,1730878260184,-335.61,0.00037996,14]
[341428707,1730878260194,-500.0,0.00037996,14]
[341428708,1730878260204,-500.0,0.00037996,14]
[341428709,1730878260213,-500.0,0.00037996,14]
[341428710,1730878260222,-267.29,0.00037996,14]
[341428711,1730878260231,-500.0,0.00037996,14]
[341428712,1730878260240,-500.0,0.00037996,14]
[341428713,1730878260249,-500.0,0.00037996,7]
[341428714,1730878260259,-500.0,0.00037996,14]
[341428715,1730878260268,-500.0,0.00037996,14]
[341428716,1730878260277,-500.0,0.00037996,14]
[341428717,1730878260286,-502.88,0.00037996,14]
[341428718,1730878260295,-246.94,0.00037996,14]
[341428719,1730878260304,-500.0,0.00037996,14]
[341428720,1730878260314,-519.55,0.00037996,14]
[341428721,1730878260323,-281.02,0.00037996,14]
[341428722,1730878260332,-500.0,0.00037996,14]
[341428723,1730878260340,-500.0,0.00037996,14]
[341428724,1730878260350,-300.0,0.00037996,14]
[341428725,1730878260360,-500.0,0.00037996,2]
[341428726,1730878260369,-337.9,0.00037996,14]
[341428727,1730878260378,-500.0,0.00037996,14]
[341428728,1730878260387,-500.0,0.00037996,14]
[341428729,1730878260396,-50.83188811,0.00037997,14]
[341428730,1730878260411,-500.0,0.00037997,14]
[341428731,1730878260420,-500.0,0.00037997,7]
[341428732,1730878260429,-500.0,0.00037997,14]
[341428733,1730878260442,-532.32489971,0.00037997,14]
[341428734,1730878260451,-500.0,0.00037997,14]
[341428735,1730878260460,-461.52687049,0.00037997,14]
[341428736,1730878260469,-314.08033762,0.00037997,14]
[341428737,1730878260479,-500.0,0.00037997,14]
[341428738,1730878260489,-500.0,0.00037997,14]
[341428739,1730878260498,-500.0,0.00037997,14]
[341428740,1730878260507,-500.0,0.00037997,14]
[341428741,1730878260517,-549.90460155,0.00037997,14]
[341428742,1730878260527,-569.8382661,0.00037997,14]
[341428743,1730878260536,-505.75,0.00037997,14]
[341428744,1730878260545,-500.0,0.00037997,14]
[341428745,1730878260555,-500.0,0.00037997,14]
[341428746,1730878260564,-500.0,0.00037997,14]
[341428747,1730878260574,-500.0,0.00037997,14]
[341428748,1730878260583,-565.86145814,0.00037997,14]
[341428749,1730878260592,-419.90162431,0.00037997,14]
[341428750,1730878260603,-500.0,0.00037997,14]
[341428751,1730878260612,-500.0,0.00037997,14]
[341428752,1730878260621,-507.22219783,0.00037997,14]
[341428753,1730878260630,-500.0,0.00037997,14]
[341428754,1730878260639,-500.0,0.00037997,14]
[341428755,1730878260649,-500.0,0.00037997,14]
[341428756,1730878260658,-517.20305254,0.00037997,14]
[341428757,1730878260667,-351.18368911,0.00037997,14]
[341428758,1730878260677,-500.0,0.00037997,14]
[341428759,1730878260689,-500.0,0.00037997,14]
[341428760,1730878260698,-500.0,0.00037997,14]
[341428761,1730878260707,-588.47295716,0.00037997,14]
[341428762,1730878260716,-500.0,0.00037997,14]
[341428763,1730878260725,-500.0,0.00037997,14]
[341428764,1730878260734,-503.45366872,0.00037997,14]
[341428765,1730878260743,-518.76304363,0.00037997,14]
[341428766,1730878260752,-500.0,0.00037997,14]
[341428767,1730878260760,-500.0,0.00037997,14]
[341428768,1730878260769,-500.0,0.00037997,14]
[341428769,1730878260778,-505.34279181,0.00037997,14]
[341428770,1730878260787,-500.0,0.00037997,14]
[341428771,1730878260796,-194.45953917,0.00037997,14]
[341428772,1730878260805,-500.0,0.00037997,14]
[341428773,1730878260814,-219.21938381,0.00037997,14]
[341428774,1730878260823,-500.0,0.00037997,14]
[341428775,1730878260833,-500.0,0.00037997,14]
[341428776,1730878260842,-310.0052286,0.00037997,14]
[341428777,1730878260851,-500.0,0.00037997,14]
[341428778,1730878260860,-500.0,0.00037997,14]
[341428779,1730878260869,-500.0,0.00037997,14]
[341428780,1730878260878,-501.74672283,0.00037997,14]
[341428781,1730878260887,-503.74306071,0.00037997,14]
[341428782,1730878260896,-500.0,0.00037997,14]
[341428783,1730878260905,-500.0,0.00037997,5]
[341428784,1730878260914,-508.52503737,0.00037997,14]
[341428785,1730878260923,-500.0,0.00037997,14]
[341428786,1730878260932,-500.0,0.00037997,14]
[341428787,1730878260944,-500.0,0.00037997,14]
[341428788,1730878260953,-500.0,0.00037997,10]
[341428789,1730878260963,-500.0,0.00037997,14]
[341428790,1730878260972,-500.0,0.00037997,14]
[341428791,1730878260982,-500.0,0.00037997,14]
[341428792,1730878260991,-421.43677748,0.00037997,14]
[341428793,1730878261001,-500.0,0.00037997,14]
[341428794,1730878261011,-439.55708528,0.00037997,14]
[341428795,1730878261021,-500.0,0.00037997,14]
[341428796,1730878261031,-500.0,0.00037997,14]
[341428797,1730878261042,-500.0,0.00037997,14]
[341428798,1730878261052,-500.0,0.00037997,14]
[341428799,1730878261062,-500.0,0.00037997,14]
[341428800,1730878261072,-500.0,0.00037997,14]
[341428801,1730878261082,-500.0,0.00037997,14]
[341428802,1730878261092,-465.88843196,0.00037997,14]
[341428803,1730878261101,-500.0,0.00037997,14]
[341428804,1730878261111,-500.0,0.00037997,14]
[341428805,1730878261120,-500.0,0.00037997,14]
[341428806,1730878261130,-503.75014841,0.00037997,14]
[341428807,1730878261140,-500.0,0.00037997,14]
[341428808,1730878261149,-500.0,0.00037997,14]
[341428809,1730878261159,-508.20097982,0.00037997,14]
[341428810,1730878261168,-500.0,0.00037997,14]
[341428811,1730878261177,-500.0,0.00037997,14]
[341428812,1730878261189,-500.0,0.00037997,14]
[341428813,1730878261199,-500.0,0.00037997,14]
[341428814,1730878261208,-500.0,0.00037997,14]
[341428815,1730878261217,-512.26919377,0.00037997,14]
[341428816,1730878261226,-506.09652351,0.00037997,14]
[341428817,1730878261235,-500.0,0.00037997,14]
[341428818,1730878261245,-517.54443022,0.00037997,14]
[341428819,1730878261254,-500.0,0.00037997,14]
[341428820,1730878261264,-500.0,0.00037997,14]
[341428821,1730878261273,-500.0,0.00037997,14]
[341428822,1730878261282,-500.0,0.00037997,14]
[341428823,1730878261291,-500.0,0.00037997,14]
[341428824,1730878261300,-500.0,0.00037997,14]
[341428825,1730878261309,-514.55787167,0.00037997,14]
[341428826,1730878261318,-500.0,0.00037997,14]
[341428827,1730878261327,-483.63569507,0.00037997,14]
[341428828,1730878261336,-500.0,0.00037997,14]
[341428829,1730878261346,-500.0,0.00037997,14]
[341428830,1730878261355,-500.0,0.00037997,14]
[341428831,1730878261365,-500.0,0.00037997,14]
[341428832,1730878261374,-500.0,0.00037997,14]
[341428833,1730878261383,-500.0,0.00037997,14]
[341428834,1730878261392,-503.98791963,0.00037997,14]
[341428835,1730878261403,-500.0,0.00037997,14]
[341428836,1730878261414,-511.38806455,0.00037997,14]
[341428837,1730878261423,-500.0,0.00037997,14]
[341428838,1730878261432,-500.0,0.00037997,14]
[341428839,1730878261445,-521.32582887,0.00037997,14]
[341428840,1730878261455,-500.0,0.00037997,14]
[341428841,1730878261463,-500.0,0.00037997,14]
[341428842,1730878261472,-500.0,0.00037997,14]
[341428843,1730878261483,-500.0,0.00037997,14]
[341428844,1730878261492,-503.0117564,0.00037997,14]
[341428845,1730878261502,-500.0,0.00037997,14]
[341428846,1730878261511,-500.0,0.00037997,14]
[341428847,1730878261520,-546.8751663,0.00037997,14]
[341428848,1730878261529,-500.0,0.00037997,14]
[341428849,1730878261539,-500.0,0.00037997,14]
[341428850,1730878261548,-500.0,0.00037997,14]
[341428851,1730878261558,-500.0,0.00037997,14]
[341428852,1730878261568,-500.0,0.00037997,14]
[341428853,1730878261577,-502.43160405,0.00037997,14]
[341428854,1730878261587,-500.0,0.00037997,14]
[341428855,1730878261596,-500.0,0.00037997,14]
[341428856,1730878261605,-500.0,0.00037997,14]
[341428857,1730878261614,-500.0,0.00037997,14]
[341428858,1730878261623,-500.0,0.00037997,14]
[341428859,1730878261632,-500.0,0.00037997,14]
[341428860,1730878261641,-500.0,0.00037997,14]
[341428861,1730878261650,-500.0,0.00037997,14]
[341428862,1730878261659,-500.0,0.00037997,14]
[341428863,1730878261668,-624.41234586,0.00037997,14]
[341428864,1730878261677,-500.0,0.00037997,14]
[341428865,1730878261689,-500.0,0.00037997,14]
[341428866,1730878261698,-500.0,0.00037997,14]
[341428867,1730878261708,-509.7568335,0.00037997,14]
[341428868,1730878261718,-500.0,0.00037997,14]
[341428869,1730878261727,-500.0,0.00037997,14]
[341428870,1730878261736,-565.05596444,0.00037997,14]
[341428871,1730878261746,-500.0,0.00037997,14]
[341428872,1730878261755,-500.0,0.00037997,14]
[341428873,1730878261765,-500.0,0.00037997,14]
[341428874,1730878261774,-500.0,0.00037997,14]
[341428875,1730878261783,-500.0,0.00037997,14]
[341428876,1730878261793,-500.0,0.00037997,14]
[341428877,1730878261802,-500.0,0.00037997,14]
[341428878,1730878261812,-500.0,0.00037997,14]
[341428879,1730878261822,-500.0,0.00037997,14]
[341428880,1730878261832,-546.47362492,0.00037997,14]
[341428881,1730878261841,-500.0,0.00037997,5]
[341428882,1730878261851,-500.0,0.00037997,14]
[341428883,1730878261861,-500.0,0.00037997,14]
[341428884,1730878261871,-510.01299167,0.00037997,14]
[341428885,1730878261880,-500.0,0.00037997,14]
[341428886,1730878261889,-500.0,0.00037997,14]
[341428887,1730878261899,-521.86140719,0.00037997,14]
[341428888,1730878261908,-500.65454963,0.00037997,14]
[341428889,1730878261918,-500.0,0.00037997,14]
[341428890,1730878261927,-513.3465485,0.00037997,14]
[341428891,1730878261938,-500.0,0.00037997,14]
[341428892,1730878261947,-500.0,0.00037997,14]
[341428893,1730878261957,-500.0,0.00037997,14]
[341428894,1730878261967,-501.49095616,0.00037997,14]
[341428895,1730878261976,-501.91564842,0.00037997,14]
[341428896,1730878261986,-500.0,0.00037997,14]
[341428897,1730878261995,-500.0,0.00037997,14]
[341428898,1730878262005,-500.0,0.00037997,14]
[341428899,1730878262015,-500.0,0.00037997,14]
[341428900,1730878262024,-500.0,0.00037997,14]
[341428901,1730878262033,-500.0,0.00037997,14]
[341428902,1730878262043,-500.0,0.00037997,14]
[341428903,1730878262052,-500.0,0.00037997,14]
[341428904,1730878262062,-500.0,0.00037997,14]
[341428905,1730878262071,-500.0,0.00037997,14]
[341428906,1730878262081,-500.0,0.00037997,14]
[341428907,1730878262091,-500.0,0.00037997,14]
[341428908,1730878262102,-500.0,0.00037997,14]
[341428909,1730878262112,-500.0,0.00037997,14]
[341428910,1730878262122,-500.0,0.00037997,14]
[341428911,1730878262131,-500.0,0.00037997,14]
[341428912,1730878262141,-500.0,0.00037997,14]
[341428913,1730878262151,-500.0,0.00037997,14]
[341428914,1730878262160,-500.0,0.00037997,14]
[341428915,1730878262170,-500.0,0.00037997,14]
[341428916,1730878262180,-501.58690574,0.00037997,14]
[341428917,1730878262191,-468.28061619,0.00037997,14]
[341428918,1730878262201,-500.0,0.00037997,14]
[341428919,1730878262210,-500.0,0.00037997,14]
[341428920,1730878262220,-500.0,0.00037997,14]
[341428921,1730878262230,-632.5220459,0.00037997,14]
[341428922,1730878262241,-500.0,0.00037997,14]
[341428923,1730878262252,-500.0,0.00037997,14]
[341428924,1730878262263,-500.0,0.00037997,14]
[341428925,1730878262273,-500.0,0.00037997,14]
[341428926,1730878262283,-500.0,0.00037997,14]
[341428927,1730878262294,-500.0,0.00037997,14]
[341428928,1730878262304,-500.0,0.00037997,14]
[341428929,1730878262313,-500.0,0.00037997,14]
[341428930,1730878262324,-500.0,0.00037997,14]
[341428931,1730878262333,-500.0,0.00037997,14]
[341428932,1730878262343,-500.0,0.00037997,14]
[341428933,1730878262353,-500.0,0.00037997,14]
[341428934,1730878262364,-500.0,0.00037997,14]
[341428935,1730878262373,-500.0,0.00037997,14]
[341428936,1730878262383,-500.0,0.00037997,14]
[341428937,1730878262394,-504.4484312,0.00037997,14]
[341428938,1730878262410,-500.0,0.00037997,14]
[341428939,1730878262420,-500.0,0.00037997,14]
[341428940,1730878262431,-500.0,0.00037997,14]
[341428941,1730878262442,-500.0,0.00037997,14]
[341428942,1730878262454,-500.0,0.00037997,14]
[341428943,1730878262464,-500.0,0.00037997,14]
[341428944,1730878262474,-500.0,0.00037997,14]
[341428945,1730878262483,-500.0,0.00037997,14]
[341428946,1730878262494,-500.0,0.00037997,14]
[341428947,1730878262504,-500.0,0.00037997,14]